[Event "*** Titled Tuesday Blitz"]
[Site "Chess.com"]
[Date "2019.09.03"]
[Round "9"]
[White "tonyq11"]
[Black "JAN2404"]
[Result "1-0"]
[WhiteElo "2180"]
[BlackElo "1688"]
[TimeControl "180+2"]
[EndTime "17:08:03 PDT"]
[Termination "tonyq11 won by resignation"]

1. e4 {[%clk 0:03:01.9]} 1... c5 {[%clk 0:03:00.9]} 2. Nf3 {[%clk 0:02:58.9]}
2... d6 {[%clk 0:03:02.2]} 3. Bb5+ {[%clk 0:02:57.9]} 3... Bd7 {[%clk
0:03:02.1]} 4. Bxd7+ {[%clk 0:02:58.9]} 4... Nxd7 {[%clk 0:03:03.2]} 5. O-O
{[%clk 0:03:00.7]} 5... Ngf6 {[%clk 0:03:04.3]} 6. Re1 {[%clk 0:03:01.1]} 6...
g6 {[%clk 0:03:05.4]} 7. c3 {[%clk 0:02:59.3]} 7... Bg7 {[%clk 0:03:05.5]} 8. d4
{[%clk 0:03:01]} 8... cxd4 {[%clk 0:03:07.3]} 9. cxd4 {[%clk 0:03:02.9]} 9...
O-O {[%clk 0:03:08.5]} 10. Nc3 {[%clk 0:03:02.5]} 10... Nb6 {[%clk 0:03:07.9]}
11. b3 {[%clk 0:02:58.7]} 11... Rc8 {[%clk 0:03:07.9]} 12. Bb2 {[%clk
0:02:59.7]} 12... e6 {[%clk 0:03:09.7]} 13. Rc1 {[%clk 0:03:00.1]} 13... Re8
{[%clk 0:03:08.5]} 14. Qe2 {[%clk 0:02:57.1]} 14... d5 {[%clk 0:02:56.8]} 15. e5
{[%clk 0:02:53.1]} 15... Nfd7 {[%clk 0:02:57.5]} 16. Ba3 {[%clk 0:02:43.3]}
16... Bh6 {[%clk 0:02:55.5]} 17. Rc2 {[%clk 0:02:42.3]} 17... Nb8 {[%clk
0:01:53.3]} 18. Nb5 {[%clk 0:02:37.5]} 18... Rxc2 {[%clk 0:01:51.3]} 19. Qxc2
{[%clk 0:02:39.4]} 19... a5 {[%clk 0:01:50.5]} 20. Nd6 {[%clk 0:02:37.4]} 20...
Re7 {[%clk 0:01:49.8]} 21. Bc1 {[%clk 0:02:34.3]} 21... Rc7 {[%clk 0:01:46.5]}
22. Qb2 {[%clk 0:02:28.4]} 22... Bf8 {[%clk 0:01:46.9]} 23. Nb5 {[%clk
0:02:19.2]} 23... Rc8 {[%clk 0:01:47.8]} 24. Bg5 {[%clk 0:02:18.9]} 24... Be7
{[%clk 0:01:48.3]} 25. Bxe7 {[%clk 0:02:08.8]} 25... Qxe7 {[%clk 0:01:50.2]} 26.
Nd6 {[%clk 0:02:10]} 26... Rc7 {[%clk 0:01:51.6]} 27. Rc1 {[%clk 0:02:07.3]}
27... Nc6 {[%clk 0:01:50.1]} 28. a3 {[%clk 0:02:02.7]} 28... f6 {[%clk
0:01:47.2]} 29. Nb5 {[%clk 0:01:59]} 29... Rc8 {[%clk 0:01:46.3]} 30. Qe2 {[%clk
0:01:42.9]} 30... Rd8 {[%clk 0:01:39.6]} 31. h4 {[%clk 0:01:27]} 31... fxe5
{[%clk 0:01:37.6]} 32. Nxe5 {[%clk 0:01:27.3]} 32... Nxe5 {[%clk 0:01:35.3]} 33.
Qxe5 {[%clk 0:01:25.7]} 33... Nd7 {[%clk 0:01:30.1]} 34. Rc7 {[%clk 0:00:59.1]}
34... Qe8 {[%clk 0:01:00.7]} 35. Qf4 {[%clk 0:00:49]} 35... Nb6 {[%clk
0:00:59.1]} 36. Nd6 {[%clk 0:00:44.5]} 36... Qf8 {[%clk 0:00:40.1]} 37. Qxf8+
{[%clk 0:00:36.1]} 37... Kxf8 {[%clk 0:00:39.2]} 38. Nxb7 {[%clk 0:00:30.7]}
38... Rc8 {[%clk 0:00:40.5]} 39. Rxc8+ {[%clk 0:00:27.7]} 39... Nxc8 {[%clk
0:00:42.4]} 40. Nxa5 {[%clk 0:00:28.9]} 40... Nb6 {[%clk 0:00:42.8]} 41. Nc6
{[%clk 0:00:27.4]} 41... Ke8 {[%clk 0:00:40.8]} 42. Kf1 {[%clk 0:00:27.2]} 42...
Kd7 {[%clk 0:00:42.2]} 43. Ne5+ {[%clk 0:00:26.3]} 43... Kd6 {[%clk 0:00:44.1]}
44. Ke2 {[%clk 0:00:27.1]} 44... Nc8 {[%clk 0:00:45.1]} 45. Kd3 {[%clk
0:00:27.8]} 45... Ne7 {[%clk 0:00:46.1]} 46. a4 {[%clk 0:00:24.6]} 46... Kc7
{[%clk 0:00:47.1]} 47. b4 {[%clk 0:00:25.1]} 47... Kb6 {[%clk 0:00:48.2]} 48.
Nd7+ {[%clk 0:00:23.1]} 48... Ka6 {[%clk 0:00:48]} 49. Nc5+ {[%clk 0:00:23.3]}
49... Kb6 {[%clk 0:00:49.1]} 50. Nxe6 {[%clk 0:00:24.5]} 50... Nc6 {[%clk
0:00:46.9]} 51. Kc3 {[%clk 0:00:24.7]} 51... Ka6 {[%clk 0:00:46.9]} 52. b5+
{[%clk 0:00:25.3]} 1-0

[Event "*** Titled Tuesday Blitz"]
[Site "Chess.com"]
[Date "2019.09.03"]
[Round "9"]
[White "StephenDedalus83"]
[Black "Witik"]
[Result "1-0"]
[WhiteElo "2833"]
[BlackElo "2575"]
[TimeControl "180+2"]
[EndTime "17:08:08 PDT"]
[Termination "StephenDedalus83 won by resignation"]

1. g3 {[%clk 0:03:01.9]} 1... e5 {[%clk 0:02:55.4]} 2. Bg2 {[%clk 0:03:02.8]}
2... d5 {[%clk 0:02:55.7]} 3. d4 {[%clk 0:03:03.3]} 3... exd4 {[%clk 0:02:52.3]}
4. Qxd4 {[%clk 0:03:04.3]} 4... Nf6 {[%clk 0:02:51.6]} 5. Bg5 {[%clk 0:03:04.2]}
5... Be7 {[%clk 0:02:47.9]} 6. c3 {[%clk 0:03:04.7]} 6... Nc6 {[%clk 0:02:30.6]}
7. Qd1 {[%clk 0:03:03.8]} 7... O-O {[%clk 0:02:19.1]} 8. Bxf6 {[%clk 0:03:00.4]}
8... Bxf6 {[%clk 0:02:20.4]} 9. Qxd5 {[%clk 0:03:01.5]} 9... Qe7 {[%clk
0:02:19.6]} 10. Nd2 {[%clk 0:02:56.5]} 10... Re8 {[%clk 0:02:07.8]} 11. Ne4
{[%clk 0:02:46.6]} 11... Be6 {[%clk 0:02:05.9]} 12. Qc5 {[%clk 0:02:45.7]} 12...
Be5 {[%clk 0:01:19.1]} 13. Nf3 {[%clk 0:02:37.6]} 13... Bg4 {[%clk 0:01:04.7]}
14. Qxe7 {[%clk 0:02:33.4]} 14... Rxe7 {[%clk 0:01:05.6]} 15. O-O {[%clk
0:02:27.3]} 15... Rae8 {[%clk 0:00:47.7]} 16. e3 {[%clk 0:02:23]} 16... Bxf3
{[%clk 0:00:31]} 17. Bxf3 {[%clk 0:02:22.8]} 17... Na5 {[%clk 0:00:32.6]} 18.
Rad1 {[%clk 0:02:18.8]} 18... b6 {[%clk 0:00:19.6]} 19. Rd3 {[%clk 0:02:10]}
19... Nc4 {[%clk 0:00:20.8]} 20. b3 {[%clk 0:02:09.9]} 20... Nd6 {[%clk
0:00:22.2]} 21. Nd2 {[%clk 0:02:08.8]} 21... g6 {[%clk 0:00:21.3]} 22. Bc6
{[%clk 0:02:06.5]} 22... Rf8 {[%clk 0:00:22.3]} 23. Rd1 {[%clk 0:02:05.9]} 23...
h5 {[%clk 0:00:23.3]} 24. Kg2 {[%clk 0:02:04.8]} 24... Kg7 {[%clk 0:00:24.4]}
25. Nf3 {[%clk 0:02:05.1]} 25... Bf6 {[%clk 0:00:25.6]} 26. c4 {[%clk
0:02:05.6]} 26... a5 {[%clk 0:00:25.6]} 27. Re1 {[%clk 0:01:52.4]} 27... Bb2
{[%clk 0:00:18.2]} 28. Re2 {[%clk 0:01:46.3]} 28... Ba3 {[%clk 0:00:19.2]} 29.
e4 {[%clk 0:01:45.8]} 29... Bc5 {[%clk 0:00:12.6]} 30. e5 {[%clk 0:01:46]} 30...
Nf5 {[%clk 0:00:13.9]} 31. Be4 {[%clk 0:01:35.6]} 31... Nh6 {[%clk 0:00:12]} 32.
h3 {[%clk 0:01:31.6]} 32... f6 {[%clk 0:00:13.3]} 33. exf6+ {[%clk 0:01:19.5]}
33... Rxf6 {[%clk 0:00:14.4]} 34. Rdd2 {[%clk 0:01:18.3]} 34... Nf7 {[%clk
0:00:12.8]} 35. Bd5 {[%clk 0:01:17.4]} 35... Rxe2 {[%clk 0:00:11.5]} 36. Rxe2
{[%clk 0:01:18.3]} 36... Kf8 {[%clk 0:00:12.6]} 37. Bxf7 {[%clk 0:01:17.5]}
37... Rxf7 {[%clk 0:00:13.6]} 38. Ne5 {[%clk 0:01:18.2]} 38... Rg7 {[%clk
0:00:13.9]} 39. Rd2 {[%clk 0:01:18.1]} 39... Bd6 {[%clk 0:00:14.9]} 40. Nd3
{[%clk 0:01:17.1]} 40... Re7 {[%clk 0:00:16.1]} 41. Kf3 {[%clk 0:01:16.7]} 41...
Kg7 {[%clk 0:00:16.2]} 42. Re2 {[%clk 0:01:17.2]} 42... Rf7+ {[%clk 0:00:11.4]}
43. Kg2 {[%clk 0:01:18]} 43... Kf6 {[%clk 0:00:12.9]} 44. f4 {[%clk 0:01:18.1]}
44... Rd7 {[%clk 0:00:14]} 45. Kf3 {[%clk 0:01:17.4]} 45... g5 {[%clk
0:00:14.6]} 46. fxg5+ {[%clk 0:01:00.8]} 46... Kxg5 {[%clk 0:00:15.8]} 47. Nf2
{[%clk 0:01:02.2]} 47... Rf7+ {[%clk 0:00:15]} 48. Kg2 {[%clk 0:01:02.7]} 48...
Kf5 {[%clk 0:00:16.4]} 49. Ne4 {[%clk 0:01:03.2]} 49... Be5 {[%clk 0:00:17.8]}
50. Rf2+ {[%clk 0:01:03.2]} 50... Ke6 {[%clk 0:00:19.4]} 51. Ng5+ {[%clk
0:01:03.5]} 1-0

[Event "*** Titled Tuesday Blitz"]
[Site "Chess.com"]
[Date "2019.09.03"]
[Round "9"]
[White "jcibarra"]
[Black "chegueps"]
[Result "1-0"]
[WhiteElo "2801"]
[BlackElo "2550"]
[TimeControl "180+2"]
[EndTime "17:08:21 PDT"]
[Termination "jcibarra won by resignation"]

1. e4 {[%clk 0:03:01.9]} 1... c5 {[%clk 0:02:53.3]} 2. Nf3 {[%clk 0:03:02.6]}
2... d6 {[%clk 0:02:53.7]} 3. d4 {[%clk 0:03:03.6]} 3... cxd4 {[%clk 0:02:55.6]}
4. Nxd4 {[%clk 0:03:05.2]} 4... Nf6 {[%clk 0:02:56.7]} 5. Nc3 {[%clk 0:03:06.7]}
5... a6 {[%clk 0:02:58.3]} 6. Be3 {[%clk 0:03:07]} 6... e5 {[%clk 0:02:58.9]} 7.
Nf3 {[%clk 0:03:07.5]} 7... Be7 {[%clk 0:02:57.7]} 8. Bc4 {[%clk 0:03:08.2]}
8... O-O {[%clk 0:02:49.7]} 9. O-O {[%clk 0:03:09.1]} 9... Nbd7 {[%clk
0:02:34.2]} 10. a4 {[%clk 0:03:08.3]} 10... b6 {[%clk 0:02:31]} 11. Bg5 {[%clk
0:03:08.6]} 11... Bb7 {[%clk 0:02:30.7]} 12. Qe2 {[%clk 0:03:09.1]} 12... h6
{[%clk 0:02:29.4]} 13. Bxf6 {[%clk 0:03:10]} 13... Nxf6 {[%clk 0:02:31.3]} 14.
Rfd1 {[%clk 0:03:10.8]} 14... Qc7 {[%clk 0:02:31.8]} 15. Nh4 {[%clk 0:03:05.7]}
15... g6 {[%clk 0:02:21.8]} 16. Nxg6 {[%clk 0:03:05.3]} 16... Rfc8 {[%clk
0:02:09]} 17. Bb3 {[%clk 0:03:03.6]} 17... Kg7 {[%clk 0:02:03.9]} 18. Nh4 {[%clk
0:03:02.9]} 18... Rg8 {[%clk 0:01:55.8]} 19. Nf5+ {[%clk 0:03:01.3]} 19... Kh7
{[%clk 0:01:53.2]} 20. Bxf7 {[%clk 0:02:58]} 20... Rg5 {[%clk 0:01:51.5]} 21. h4
{[%clk 0:02:53.4]} 21... Rg4 {[%clk 0:01:46.4]} 22. f3 {[%clk 0:02:53.3]} 22...
Rgg8 {[%clk 0:01:44.9]} 23. Bxg8+ {[%clk 0:02:52.9]} 23... Rxg8 {[%clk
0:01:46.8]} 24. Qe3 {[%clk 0:02:48.5]} 24... Bf8 {[%clk 0:01:45.9]} 25. Nd5
{[%clk 0:02:36.3]} 25... Bxd5 {[%clk 0:01:44.3]} 26. exd5 {[%clk 0:02:28.2]}
26... Qxc2 {[%clk 0:01:42.2]} 27. Rd2 {[%clk 0:01:59.9]} 27... Qxf5 {[%clk
0:01:43]} 28. Qxb6 {[%clk 0:02:01.1]} 28... Nh5 {[%clk 0:01:26.3]} 29. Qxa6
{[%clk 0:01:48.5]} 29... Nf4 {[%clk 0:01:26.6]} 30. Qf1 {[%clk 0:01:29.6]} 30...
Be7 {[%clk 0:00:49]} 31. Qb1 {[%clk 0:01:26.5]} 31... Qxb1+ {[%clk 0:00:37.4]}
32. Rxb1 {[%clk 0:01:28.4]} 32... Bd8 {[%clk 0:00:39.1]} 33. b4 {[%clk
0:01:27.6]} 33... Bb6+ {[%clk 0:00:37]} 34. Kh2 {[%clk 0:01:28.9]} 34... Be3
{[%clk 0:00:35.9]} 35. Rc2 {[%clk 0:01:27]} 35... Nxd5 {[%clk 0:00:36.7]} 36. a5
{[%clk 0:01:27.5]} 36... Bf4+ {[%clk 0:00:37.9]} 37. Kh1 {[%clk 0:01:27.2]}
37... Ne3 {[%clk 0:00:32.9]} 38. Ra2 {[%clk 0:01:19.9]} 38... e4 {[%clk
0:00:24.4]} 39. fxe4 {[%clk 0:01:05.6]} 39... Rg4 {[%clk 0:00:24.3]} 40. a6
{[%clk 0:01:01.4]} 40... Nc4 {[%clk 0:00:25]} 41. Re1 {[%clk 0:00:52.5]} 41...
Bg3 {[%clk 0:00:18.2]} 42. Rc1 {[%clk 0:00:48.2]} 42... Nb6 {[%clk 0:00:10]} 43.
a7 {[%clk 0:00:48.8]} 43... Bf4 {[%clk 0:00:10.7]} 44. Rc3 {[%clk 0:00:43.4]}
44... Be5 {[%clk 0:00:10.4]} 45. Rc6 {[%clk 0:00:35.4]} 45... Rxe4 {[%clk
0:00:10.9]} 46. g4 {[%clk 0:00:33.2]} 46... Na8 {[%clk 0:00:10.7]} 47. Rc8
{[%clk 0:00:33.8]} 47... Re1+ {[%clk 0:00:11.2]} 48. Kg2 {[%clk 0:00:34.7]}
48... Re2+ {[%clk 0:00:12.4]} 49. Rxe2 {[%clk 0:00:34.8]} 1-0

[Event "*** Titled Tuesday Blitz"]
[Site "Chess.com"]
[Date "2019.09.03"]
[Round "9"]
[White "liczner"]
[Black "chess3054"]
[Result "1-0"]
[WhiteElo "2698"]
[BlackElo "2481"]
[TimeControl "180+2"]
[EndTime "17:08:42 PDT"]
[Termination "liczner won by checkmate"]

1. e4 {[%clk 0:03:01.9]} 1... e6 {[%clk 0:03:00.9]} 2. d4 {[%clk 0:02:51.5]}
2... d5 {[%clk 0:03:00.7]} 3. Nd2 {[%clk 0:02:52.8]} 3... Nf6 {[%clk 0:03:01.4]}
4. e5 {[%clk 0:02:54.2]} 4... Nfd7 {[%clk 0:03:02.5]} 5. Bd3 {[%clk 0:02:55.8]}
5... c5 {[%clk 0:03:03.4]} 6. c3 {[%clk 0:02:57.4]} 6... Nc6 {[%clk 0:03:04.6]}
7. Ne2 {[%clk 0:02:58.8]} 7... cxd4 {[%clk 0:03:05.2]} 8. cxd4 {[%clk
0:03:00.3]} 8... f6 {[%clk 0:03:06.9]} 9. exf6 {[%clk 0:03:01.6]} 9... Nxf6
{[%clk 0:03:08.8]} 10. Nf3 {[%clk 0:03:02.4]} 10... Bd6 {[%clk 0:03:10.3]} 11.
O-O {[%clk 0:03:03.3]} 11... Qc7 {[%clk 0:03:11.4]} 12. Bg5 {[%clk 0:02:54.2]}
12... O-O {[%clk 0:03:11]} 13. Bh4 {[%clk 0:02:54]} 13... Nh5 {[%clk 0:03:12.1]}
14. Qc2 {[%clk 0:02:53.1]} 14... h6 {[%clk 0:03:09.5]} 15. Bh7+ {[%clk 0:02:54]}
15... Kh8 {[%clk 0:03:10.9]} 16. Bg6 {[%clk 0:02:55.6]} 16... Rxf3 {[%clk
0:03:12.2]} 17. Bxh5 {[%clk 0:02:56.8]} 17... Rf8 {[%clk 0:03:10]} 18. Bg3
{[%clk 0:02:56.7]} 18... Bd7 {[%clk 0:03:08.5]} 19. Qd2 {[%clk 0:02:54.8]} 19...
Be8 {[%clk 0:02:57.6]} 20. Bg4 {[%clk 0:02:49.8]} 20... Bf7 {[%clk 0:02:54.7]}
21. Rac1 {[%clk 0:02:17.9]} 21... Rae8 {[%clk 0:02:54]} 22. Nf4 {[%clk
0:02:03.6]} 22... Qd8 {[%clk 0:02:28.2]} 23. Nd3 {[%clk 0:01:30]} 23... Bg6
{[%clk 0:01:59.5]} 24. Nc5 {[%clk 0:01:13.6]} 24... Bxc5 {[%clk 0:01:08.5]} 25.
dxc5 {[%clk 0:01:15.5]} 25... e5 {[%clk 0:01:02.4]} 26. Rfe1 {[%clk 0:01:11.2]}
26... e4 {[%clk 0:00:58.9]} 27. b4 {[%clk 0:00:58.7]} 27... a6 {[%clk
0:00:55.9]} 28. a4 {[%clk 0:00:59.3]} 28... Ne5 {[%clk 0:00:56.9]} 29. Bxe5
{[%clk 0:00:52.9]} 29... Rxe5 {[%clk 0:00:58.8]} 30. Qd4 {[%clk 0:00:18.3]}
30... Rg5 {[%clk 0:00:53.7]} 31. Bh3 {[%clk 0:00:09.6]} 31... Bh5 {[%clk
0:00:41.9]} 32. b5 {[%clk 0:00:05.6]} 32... axb5 {[%clk 0:00:43.8]} 33. axb5
{[%clk 0:00:07.4]} 33... Bf3 {[%clk 0:00:45.3]} 34. g3 {[%clk 0:00:05.9]} 34...
Qe8 {[%clk 0:00:43.3]} 35. c6 {[%clk 0:00:04.3]} 35... bxc6 {[%clk 0:00:43.9]}
36. bxc6 {[%clk 0:00:05.2]} 36... Qh5 {[%clk 0:00:45.4]} 37. Bf1 {[%clk
0:00:06.6]} 37... Rff5 {[%clk 0:00:29.2]} 38. h4 {[%clk 0:00:03.1]} 38... Qxh4
{[%clk 0:00:28.7]} 39. Bg2 {[%clk 0:00:04.2]} 39... Qh5 {[%clk 0:00:13]} 40. c7
{[%clk 0:00:03.9]} 40... Bxg2 {[%clk 0:00:11.3]} 41. c8=Q+ {[%clk 0:00:05.4]}
41... Kh7 {[%clk 0:00:12.8]} 42. Kxg2 {[%clk 0:00:06.4]} 42... Qf3+ {[%clk
0:00:13.3]} 43. Kf1 {[%clk 0:00:06.1]} 43... Rxg3 {[%clk 0:00:08.4]} 44. Qxf5+
{[%clk 0:00:06.6]} 44... Qxf5 {[%clk 0:00:10.3]} 45. Re3 {[%clk 0:00:05.8]}
45... Rg4 {[%clk 0:00:09.6]} 46. Rd1 {[%clk 0:00:06.5]} 46... Rf4 {[%clk
0:00:10.2]} 47. Rg3 {[%clk 0:00:06.3]} 47... e3 {[%clk 0:00:09.8]} 48. Qxg7#
{[%clk 0:00:06.9]} 1-0

[Event "*** Titled Tuesday Blitz"]
[Site "Chess.com"]
[Date "2019.09.03"]
[Round "9"]
[White "promen1999"]
[Black "GadimbayliA"]
[Result "1/2-1/2"]
[WhiteElo "2770"]
[BlackElo "2880"]
[TimeControl "180+2"]
[EndTime "17:08:46 PDT"]
[Termination "Game drawn by repetition"]

1. d4 {[%clk 0:03:01.9]} 1... d5 {[%clk 0:02:57.6]} 2. c4 {[%clk 0:03:01.5]}
2... e5 {[%clk 0:02:58.6]} 3. dxe5 {[%clk 0:03:01.1]} 3... d4 {[%clk 0:03:00.5]}
4. Nf3 {[%clk 0:03:02.3]} 4... Nc6 {[%clk 0:03:01.3]} 5. a3 {[%clk 0:03:02.6]}
5... Nge7 {[%clk 0:03:02.3]} 6. Bf4 {[%clk 0:02:35]} 6... Ng6 {[%clk 0:02:53.5]}
7. Bg3 {[%clk 0:02:35.7]} 7... a5 {[%clk 0:02:32]} 8. e3 {[%clk 0:02:26.6]} 8...
Bg4 {[%clk 0:01:59.3]} 9. exd4 {[%clk 0:02:08.5]} 9... Bxf3 {[%clk 0:01:59.2]}
10. Qxf3 {[%clk 0:02:08.8]} 10... Qxd4 {[%clk 0:01:59.7]} 11. Nc3 {[%clk
0:02:06.3]} 11... Ngxe5 {[%clk 0:01:31.2]} 12. Qe4 {[%clk 0:01:21.7]} 12...
Qxe4+ {[%clk 0:01:06.1]} 13. Nxe4 {[%clk 0:01:23.6]} 13... O-O-O {[%clk
0:01:07.8]} 14. Rd1 {[%clk 0:01:16.4]} 14... Be7 {[%clk 0:01:00.8]} 15. Be2
{[%clk 0:01:09.6]} 15... Rxd1+ {[%clk 0:01:00.2]} 16. Kxd1 {[%clk 0:01:11.2]}
16... Rd8+ {[%clk 0:01:01.5]} 17. Kc1 {[%clk 0:01:10.9]} 17... Nd4 {[%clk
0:00:58.6]} 18. Bxe5 {[%clk 0:01:06.6]} 18... Nxe2+ {[%clk 0:00:59.1]} 19. Kc2
{[%clk 0:01:08]} 19... f6 {[%clk 0:00:47.9]} 20. Re1 {[%clk 0:01:06.6]} 20...
Nd4+ {[%clk 0:00:41.1]} 21. Bxd4 {[%clk 0:01:07.7]} 21... Rxd4 {[%clk 0:00:43]}
22. Kc3 {[%clk 0:01:00.1]} 22... Rd8 {[%clk 0:00:40.3]} 23. g4 {[%clk
0:00:58.2]} 23... Re8 {[%clk 0:00:38.7]} 24. f3 {[%clk 0:00:53.4]} 24... Rd8
{[%clk 0:00:33.4]} 25. b4 {[%clk 0:00:42.3]} 25... g6 {[%clk 0:00:32.4]} 26. Nc5
{[%clk 0:00:26.3]} 26... Bd6 {[%clk 0:00:12.5]} 27. Nd3 {[%clk 0:00:27.5]} 27...
axb4+ {[%clk 0:00:11.2]} 28. axb4 {[%clk 0:00:29.4]} 28... b6 {[%clk 0:00:07]}
29. h3 {[%clk 0:00:24.7]} 29... h5 {[%clk 0:00:04.7]} 30. Re6 {[%clk 0:00:22.6]}
30... hxg4 {[%clk 0:00:05.3]} 31. hxg4 {[%clk 0:00:24.5]} 31... Rf8 {[%clk
0:00:05]} 32. c5 {[%clk 0:00:24.5]} 32... bxc5 {[%clk 0:00:06.2]} 33. bxc5
{[%clk 0:00:26.4]} 33... Bg3 {[%clk 0:00:07.7]} 34. c6 {[%clk 0:00:26.5]} 34...
Bd6 {[%clk 0:00:07.6]} 35. Kc4 {[%clk 0:00:27.1]} 35... Kd8 {[%clk 0:00:04.7]}
36. Nc5 {[%clk 0:00:22.6]} 36... Bxc5 {[%clk 0:00:03.6]} 37. Kxc5 {[%clk
0:00:24.5]} 37... Rf7 {[%clk 0:00:04]} 38. f4 {[%clk 0:00:24.3]} 38... Rf8
{[%clk 0:00:04.9]} 39. Kd5 {[%clk 0:00:23.5]} 39... Rf7 {[%clk 0:00:05.9]} 40.
Re2 {[%clk 0:00:19.7]} 40... Rf8 {[%clk 0:00:07.1]} 41. Ra2 {[%clk 0:00:17.6]}
41... Ke7 {[%clk 0:00:08.1]} 42. Ra7 {[%clk 0:00:16.2]} 42... Rd8+ {[%clk
0:00:09]} 43. Kc5 {[%clk 0:00:17.8]} 43... Rc8 {[%clk 0:00:10.2]} 44. f5 {[%clk
0:00:13]} 44... gxf5 {[%clk 0:00:10.6]} 45. gxf5 {[%clk 0:00:14.9]} 45... Kf7
{[%clk 0:00:11.8]} 46. Kb5 {[%clk 0:00:14.2]} 46... Ke7 {[%clk 0:00:12.9]} 47.
Kc5 {[%clk 0:00:13.5]} 47... Kf7 {[%clk 0:00:10.9]} 48. Ra2 {[%clk 0:00:09.6]}
48... Re8 {[%clk 0:00:11]} 49. Ra7 {[%clk 0:00:09.6]} 49... Rc8 {[%clk
0:00:07.4]} 1/2-1/2

[Event "*** Titled Tuesday Blitz"]
[Site "Chess.com"]
[Date "2019.09.03"]
[Round "9"]
[White "guillembaches"]
[Black "riconaipe"]
[Result "1/2-1/2"]
[WhiteElo "2326"]
[BlackElo "2550"]
[TimeControl "180+2"]
[EndTime "17:08:51 PDT"]
[Termination "Game drawn by repetition"]

1. e4 {[%clk 0:03:01.9]} 1... d6 {[%clk 0:03:00.8]} 2. d4 {[%clk 0:03:02.3]}
2... Nd7 {[%clk 0:03:01.8]} 3. Nc3 {[%clk 0:03:00.8]} 3... g6 {[%clk 0:03:03.1]}
4. Be3 {[%clk 0:02:59.6]} 4... Bg7 {[%clk 0:03:04.4]} 5. Qd2 {[%clk 0:02:59]}
5... e5 {[%clk 0:03:05.6]} 6. Nge2 {[%clk 0:02:57.2]} 6... Ne7 {[%clk
0:03:06.1]} 7. h4 {[%clk 0:02:51.8]} 7... h5 {[%clk 0:03:06.3]} 8. O-O-O {[%clk
0:02:51.4]} 8... Nb6 {[%clk 0:03:05.9]} 9. Ng3 {[%clk 0:02:37.6]} 9... O-O
{[%clk 0:03:02.2]} 10. f4 {[%clk 0:02:34.7]} 10... Bg4 {[%clk 0:03:01.6]} 11.
Be2 {[%clk 0:02:27.9]} 11... Bxe2 {[%clk 0:02:57.8]} 12. Qxe2 {[%clk 0:02:27.8]}
12... exd4 {[%clk 0:02:55.2]} 13. Bxd4 {[%clk 0:02:27.9]} 13... Bxd4 {[%clk
0:02:55.8]} 14. Rxd4 {[%clk 0:02:29.8]} 14... Nc6 {[%clk 0:02:56.6]} 15. Rdd1
{[%clk 0:02:21.8]} 15... Qf6 {[%clk 0:02:57.9]} 16. f5 {[%clk 0:02:12.4]} 16...
Rae8 {[%clk 0:02:55.9]} 17. Rh3 {[%clk 0:01:58.3]} 17... Nd4 {[%clk 0:02:22.5]}
18. Qd3 {[%clk 0:01:35.6]} 18... c5 {[%clk 0:02:10]} 19. Rf1 {[%clk 0:01:26.4]}
19... Qg7 {[%clk 0:02:06.1]} 20. Nxh5 {[%clk 0:01:23]} 20... Qh6+ {[%clk
0:01:46.3]} 21. Nf4 {[%clk 0:01:16.3]} 21... Re5 {[%clk 0:01:42.9]} 22. g4
{[%clk 0:01:09.5]} 22... gxf5 {[%clk 0:01:38.1]} 23. g5 {[%clk 0:00:56.4]} 23...
Qh7 {[%clk 0:01:37.3]} 24. Nfd5 {[%clk 0:00:48.3]} 24... Nxd5 {[%clk 0:01:12.7]}
25. Nxd5 {[%clk 0:00:49.2]} 25... Rxd5 {[%clk 0:00:51.1]} 26. exd5 {[%clk
0:00:47.9]} 26... Qh5 {[%clk 0:00:52.6]} 27. Rh2 {[%clk 0:00:38]} 27... Re8
{[%clk 0:00:50.9]} 28. c3 {[%clk 0:00:27.9]} 28... Ne2+ {[%clk 0:00:29.6]} 29.
Kb1 {[%clk 0:00:29]} 29... c4 {[%clk 0:00:31.2]} 30. Qxc4 {[%clk 0:00:18.9]}
30... Ng3 {[%clk 0:00:27.8]} 31. Rg1 {[%clk 0:00:12.8]} 31... Qf3 {[%clk
0:00:20.1]} 32. Rh3 {[%clk 0:00:09.8]} 32... Qf2 {[%clk 0:00:13.7]} 33. Rhxg3
{[%clk 0:00:04.4]} 33... Re1+ {[%clk 0:00:15]} 34. Rxe1 {[%clk 0:00:05.5]} 34...
Qxe1+ {[%clk 0:00:16.7]} 35. Kc2 {[%clk 0:00:06.7]} 35... Qxg3 {[%clk
0:00:18.4]} 36. Qc8+ {[%clk 0:00:07.1]} 36... Kg7 {[%clk 0:00:17.3]} 37. Qxf5
{[%clk 0:00:08.5]} 37... Qxh4 {[%clk 0:00:18.4]} 38. Qf6+ {[%clk 0:00:08.9]}
38... Kg8 {[%clk 0:00:19.3]} 39. Kb3 {[%clk 0:00:09.7]} 39... Qg3 {[%clk
0:00:18.2]} 40. a4 {[%clk 0:00:09]} 40... b6 {[%clk 0:00:10.2]} 41. Ka3 {[%clk
0:00:08.7]} 41... a6 {[%clk 0:00:09.7]} 42. Kb3 {[%clk 0:00:09.8]} 42... b5
{[%clk 0:00:10.5]} 43. axb5 {[%clk 0:00:10.6]} 43... axb5 {[%clk 0:00:12.1]} 44.
Qf5 {[%clk 0:00:10.9]} 44... Qe3 {[%clk 0:00:07.8]} 45. Kc2 {[%clk 0:00:11]}
45... Qe2+ {[%clk 0:00:08.2]} 46. Kc1 {[%clk 0:00:12.1]} 46... Qe1+ {[%clk
0:00:09]} 47. Kc2 {[%clk 0:00:13.1]} 47... Qe2+ {[%clk 0:00:10.7]} 48. Kc1
{[%clk 0:00:08.9]} 48... Qe1+ {[%clk 0:00:11.9]} 49. Kc2 {[%clk 0:00:10.1]}
49... Qe2+ {[%clk 0:00:13.7]} 1/2-1/2